fUST/lending_fUST_20250719
["ID","MTS","AMOUNT","RATE_DAILY","PERIOD"]
[373213513,1752907864437,-1266.66,0.00021643,2]
[373213515,1752907864446,-630.59,0.00021643,2]
[373213517,1752907864456,-349.36216432,0.00021643,2]
[373213520,1752907864466,-2194.67,0.00021643,2]
[373213521,1752907864475,-1136.64,0.00021643,2]
[373213523,1752907864484,-7435.29,0.00021643,2]
[373213526,1752907864495,-761.71,0.00021643,2]
[373213535,1752907864578,-684.42,0.00021643,2]
[373213538,1752907864588,-727.96,0.00021643,2]
[373213539,1752907864598,-705.88,0.00021643,2]
[373213541,1752907864608,-1405.27,0.00021643,2]
[373213544,1752907864619,-460.0,0.00021643,2]
[373213546,1752907864628,-677.34,0.00021643,2]
[373213548,1752907864638,-2778.31,0.00021643,2]
[373213550,1752907864648,-692.73,0.00021643,2]
[373213551,1752907864657,-4383.08,0.00021643,2]
[373213554,1752907864666,-853.43,0.00021643,2]
[373213556,1752907864676,-561.34,0.00021643,2]
[373213557,1752907864687,-963.81,0.00021643,2]
[373213559,1752907864697,-641.44,0.00021643,2]
[373213561,1752907864707,-529.8,0.00021643,2]
[373213563,1752907864717,-1547.66,0.00021643,2]
[373213565,1752907864726,-520.08,0.00021643,2]
[373213567,1752907864735,-915.49556142,0.00021643,2]
[373213587,1752907864910,460.0,0.00016438,2]
[373213603,1752907865055,460.0,0.00016438,2]
[373213618,1752907865186,-460.0,0.00016712,2]
[373213620,1752907865196,-460.0,0.00016712,2]
[373213622,1752907865206,-460.0,0.00016986,2]
[373213624,1752907865216,-460.0,0.00016986,2]
[373213626,1752907865231,-460.0,0.0001726,2]
[373213628,1752907865240,-460.0,0.0001726,2]
[373213630,1752907865250,-460.0,0.00017534,2]
[373213632,1752907865260,-460.0,0.00017808,2]
[373213634,1752907865270,-460.0,0.00017808,2]
[373213636,1752907865280,-568.77711714,0.00018082,2]
[373213638,1752907865289,-460.0,0.00018082,2]
[373213640,1752907865299,-976.4,0.00019178,2]
[373213642,1752907865309,-460.0,0.00019452,2]
[373213644,1752907865319,-976.4,0.00019452,2]
[373213647,1752907865329,-460.0,0.00019726,2]
[373213649,1752907865339,-976.4,0.00019726,2]
[373213650,1752907865348,-976.4,0.0002,2]
[373213652,1752907865358,-460.0,0.0002,2]
[373213655,1752907865368,-976.4,0.00020273,2]
[373213657,1752907865377,-460.0,0.00020273,2]
[373213659,1752907865387,-976.4,0.00020547,2]
[373213661,1752907865396,-976.4,0.00020821,2]
[373213662,1752907865409,-1565.73,0.00021095,2]
[373213664,1752907865419,-1565.73,0.00021369,2]
[373213666,1752907865429,-1122.20443858,0.00021643,2]
[373213668,1752907865438,-2781.98,0.00021643,2]
[373213670,1752907865448,-151.0,0.00021643,2]
[373213672,1752907865458,-1565.73,0.00021643,2]
[373213674,1752907865467,-441.0,0.00021644,2]
[373213676,1752907865477,-193.0,0.00021667,2]
[373213678,1752907865486,-823.0,0.00021667,2]
[373213680,1752907865495,-660.0,0.00021706,2]
[373213683,1752907865505,-1182.0,0.00021716,2]
[373213685,1752907865515,-1182.0,0.00021744,2]
[373213687,1752907865525,-25000.0,0.00021751,2]
[373213689,1752907865535,-1182.0,0.00021753,2]
[373213691,1752907865544,-1182.0,0.00021757,2]
[373213693,1752907865553,-1182.0,0.00021797,2]
[373213695,1752907865562,-223.81751,0.00021812,3]
[373213697,1752907865571,-250.0,0.00021815,2]
[373213699,1752907865580,-1001.56545359,0.00021817,2]
[373213701,1752907865590,-5224.8904645,0.00021866,6]
[373213702,1752907865599,-1182.0,0.00021885,2]
[373213704,1752907865608,-1182.0,0.000219,2]
[373213706,1752907865618,-924.29,0.00021917,2]
[373213708,1752907865627,-475.19,0.00021917,2]
[373213710,1752907865637,-639.44,0.00021917,2]
[373213712,1752907865646,-430.74729656,0.00021917,2]
[373213714,1752907865655,-575.94,0.00021917,2]
[373213716,1752907865665,-508.05,0.00021917,2]
[373213727,1752907865749,-3148.5,0.00021917,2]
[373213729,1752907865759,-499.24,0.00021917,2]
[373213731,1752907865768,-792.23,0.00021917,2]
[373213733,1752907865777,-588.5,0.00021917,2]
[373213735,1752907865787,-819.5,0.00021917,2]
[373213737,1752907865796,-3198.65,0.00021917,2]
[373213739,1752907865811,-579.8,0.00021917,2]
[373213741,1752907865821,-1848.02,0.00021917,2]
[373213743,1752907865830,-1266.66,0.00021917,2]
[373213745,1752907865839,-630.59,0.00021917,2]
[373213747,1752907865849,-2194.67,0.00021917,2]
[373213749,1752907865858,-1136.64,0.00021917,2]
[373213751,1752907865867,-4992.53641533,0.00021917,2]
[373213753,1752907865879,-481.76566463,0.00021917,2]
[373213755,1752907865890,-916.77407425,0.00021917,2]
[373213763,1752907865953,504.19979191,0.00016438,2]
[373213770,1752907866012,460.0,0.00016438,2]
[373213777,1752907866072,460.0,0.00016438,2]
[373213783,1752907866112,500.0,0.00016438,2]
[373213788,1752907866153,-460.0,0.00016712,2]
[373213790,1752907866163,-460.0,0.00016986,2]
[373213792,1752907866173,-460.0,0.0001726,2]
[373213794,1752907866183,-460.0,0.00017534,2]
[373213796,1752907866192,-460.0,0.00020547,2]
[373213797,1752907866203,-460.0,0.00020821,2]
[373213799,1752907866212,-976.4,0.00021095,2]
[373213801,1752907866223,-460.0,0.00021095,2]
[373213803,1752907866237,-976.4,0.00021369,2]
[373213805,1752907866247,-460.0,0.00021369,2]
[373213807,1752907866257,-976.4,0.00021643,2]
[373213809,1752907866267,-392.04858829,0.00021643,2]
[373213811,1752907866278,-1044.21384579,0.00021917,2]
[373213813,1752907866288,-761.71,0.00021917,2]
[373213815,1752907866298,-684.42,0.00021917,2]
[373213817,1752907866309,-727.96,0.00021917,2]
[373213819,1752907866318,-705.88,0.00021917,2]
[373213821,1752907866328,-1405.27,0.00021917,2]
[373213823,1752907866337,-460.0,0.00021917,2]
[373213825,1752907866346,-677.34,0.00021917,2]
[373213827,1752907866356,-2778.31,0.00021917,2]
[373213829,1752907866366,-692.73,0.00021917,2]
[373213831,1752907866375,-4383.08,0.00021917,2]
[373213833,1752907866384,-853.43,0.00021917,2]
[373213834,1752907866394,-561.34,0.00021917,2]
[373213836,1752907866403,-963.81,0.00021917,2]
[373213838,1752907866413,-641.44,0.00021917,2]
[373213840,1752907866423,-529.8,0.00021917,2]
[373213842,1752907866432,-500.0,0.00021917,2]
[373213844,1752907866443,-500.0,0.00021917,2]
[373213846,1752907866452,-500.0,0.00021917,2]
[373213848,1752907866462,-379.78432667,0.00021917,2]
[373213850,1752907866473,-1547.66,0.00021917,2]
[373213852,1752907866482,-520.08,0.00021917,2]
[373213854,1752907866491,-2037.7,0.00021917,2]
[373213856,1752907866501,-2781.98,0.00021917,2]
[373213858,1752907866512,-1565.73,0.00021917,2]
[373213860,1752907866521,-976.4,0.00021917,2]
[373213862,1752907866531,-441.0,0.00021917,2]
[373213863,1752907866540,-200.36536703,0.00021918,2]
[373213865,1752907866549,-150.26780501,0.00021918,2]
[373213867,1752907866559,-1459.98390786,0.0002197,2]
[373213869,1752907866569,-500.0,0.00021973,2]
[373213871,1752907866579,-150.0,0.00021973,2]
[373213873,1752907866589,-278.60481873,0.00021973,2]
[373213875,1752907866598,-500.0,0.00021988,8]
[373213877,1752907866608,-3292.0,0.00021993,2]
[373213879,1752907866617,-500.0,0.00021994,8]
[373213881,1752907866627,-150.0,0.00022,2]
[373213883,1752907866637,-160.33965087,0.00022,2]
[373213885,1752907866646,-2522.0,0.00022,7]
[373213887,1752907866655,-18248.58,0.00022,7]
[373213889,1752907866665,-55507.14996074,0.00022,2]
[373213893,1752907866703,460.0,0.00016438,2]
[373213903,1752907867303,539.48242665,0.00016438,2]
[373213904,1752907867455,460.0,0.00016438,2]
[373213905,1752907867492,460.0,0.00016438,2]
[373213906,1752907867566,460.0,0.00016438,2]
[373213907,1752907867888,460.0,0.00016438,2]
[373213908,1752907868031,460.0,0.00016438,2]
[373213909,1752907868098,460.0,0.00016438,2]
[373213910,1752907868478,460.0,0.00016438,2]
[373213911,1752907868515,460.0,0.00016438,2]
[373213912,1752907868729,460.0,0.00016438,2]
[373213913,1752907868896,460.0,0.00016438,2]
[373213914,1752907868942,462.15664694,0.00016438,2]
[373213915,1752907869593,460.0,0.00016438,2]
[373213916,1752907869952,460.0,0.00016438,2]
[373213917,1752907870083,460.0,0.00016438,2]
[373213918,1752907870132,460.0,0.00016438,2]
[373213919,1752907870238,1133.83,0.00016438,2]
[373213920,1752907870310,460.0,0.00016438,2]
[373213921,1752907870347,460.0,0.00016438,2]
[373213922,1752907870718,460.0,0.00016438,2]
[373213923,1752907870955,460.0,0.00016438,2]
[373213924,1752907870999,460.0,0.00016438,2]
[373213925,1752907871084,460.0,0.00016438,2]
[373213926,1752907871128,4367.88288128,0.000165,2]
[373213927,1752907871155,632.11711872,0.000165,2]
[373213928,1752907871210,460.0,0.00016438,2]
[373213929,1752907871340,460.0,0.00016438,2]
[373213930,1752907871605,460.72644899,0.00016438,2]
[373213931,1752907871641,460.0,0.00016438,2]
[373213932,1752907871777,460.0,0.00016438,2]
[373213933,1752907871894,460.0,0.00016438,2]
[373213934,1752907871926,460.0,0.00016438,2]
[373213935,1752907872034,461.54909436,0.00016438,2]
[373213936,1752907872332,460.0,0.00016438,2]
[373213937,1752907872442,460.0,0.00016438,2]
[373213938,1752907872533,460.0,0.00016438,2]
[373213939,1752907872569,460.0,0.00016438,2]
[373213940,1752907873327,460.0,0.00016438,2]
[373213941,1752907873994,460.0,0.00016438,2]
[373213942,1752907874597,460.0,0.00016438,2]
[373213943,1752907874675,460.0,0.00016438,2]
[373213944,1752907875316,460.0,0.00016438,2]
[373213945,1752907876640,292.49442093,0.00016438,2]
[373213946,1752907876935,460.0,0.00016438,2]
[373213947,1752907877069,592.02,0.00016438,2]
[373213948,1752907877473,460.0,0.00016438,2]
[373213949,1752907877743,5000.0,0.000165,2]
[373213950,1752907880324,510.98512838,0.00016438,2]
[373213951,1752907880737,460.0,0.00016438,2]
[373213952,1752907881101,460.0,0.00016438,2]
[373213953,1752907881220,460.0,0.00016438,2]
[373213954,1752907884787,199.93572463,0.00016113,2]
[373213955,1752907885322,460.0,0.00016438,2]
[373213956,1752907887452,460.0,0.00016438,2]
[373213957,1752907889458,460.0,0.00016438,2]
[373213958,1752907890137,460.0,0.00016438,2]
[373213959,1752907890172,460.0,0.00016438,2]
[373213960,1752907891663,350.17206399,0.00016438,2]
[373213961,1752907891690,109.82793601,0.00016438,2]
[373213962,1752907893218,460.0,0.00016438,2]
[373213963,1752907893276,5000.0,0.000165,2]
[373213964,1752907893525,462.25770935,0.00016438,2]
[373213965,1752907895928,464.72454603,0.00016438,2]
[373213966,1752907896870,460.0,0.00016438,2]
[373213967,1752907897311,460.0,0.00016438,2]
[373213968,1752907897344,460.0,0.00016438,2]
[373213969,1752907897449,460.0,0.00016438,2]
[373213970,1752907900240,460.0,0.00016438,2]
[373213971,1752907900345,460.0,0.00016438,2]
[373213972,1752907900839,460.0,0.00016438,2]
[373213973,1752907904143,460.0,0.00016438,2]
[373213974,1752907904175,460.0,0.00016438,2]
[373213975,1752907904678,500.0,0.00016438,2]
[373213976,1752907904804,461.37419562,0.00016438,2]
[373213977,1752907904967,500.0,0.00016438,2]
[373213978,1752907905022,460.0,0.00016438,2]
[373213979,1752907905215,500.0,0.00016438,2]
[373213980,1752907906461,460.0,0.00016438,2]
[373213981,1752907906630,460.0,0.00016438,2]
[373213982,1752907906953,460.0,0.00016438,2]
[373213983,1752907907144,460.0,0.00016438,2]
[373213984,1752907908130,460.0,0.00016438,2]
[373213985,1752907909660,258.3265137,0.00016438,2]
[373213986,1752907909817,4383.48909929,0.000165,2]
[373213987,1752907909846,616.51090071,0.000165,2]
[373213988,1752907910256,460.0,0.00016438,2]
[373213989,1752907910644,1361.28,0.00016438,2]
[373213990,1752907911360,460.0,0.00016438,2]
[373213991,1752907911496,460.0,0.00016438,2]
[373213992,1752907912558,460.0,0.00016438,2]
[373213993,1752907912866,460.86965472,0.00016438,2]
[373213994,1752907914625,393.24104177,0.00016438,2]
[373213995,1752907914664,461.46206797,0.00016438,2]
[373213996,1752907915341,460.0,0.00016438,2]
[373213997,1752907916147,460.0,0.00016438,2]
[373213998,1752907916452,460.0,0.00016438,2]
[373213999,1752907919658,460.0,0.00016438,2]
[373214000,1752907920645,460.0,0.00016438,2]
[373214001,1752907920780,460.0,0.00016438,2]
[373214002,1752907921820,460.0,0.00016438,2]
[373214003,1752907923726,460.0,0.00016438,2]
[373214004,1752907923758,460.0,0.00016438,2]
[373214005,1752907924181,460.0,0.00016438,2]
[373214006,1752907924350,460.0,0.00016438,2]
[373214007,1752907926062,460.0,0.00016438,2]
[373214008,1752907926541,460.0,0.00016438,2]
[373214009,1752907927089,460.0,0.00016438,2]
[373214010,1752907927958,461.82082709,0.00016438,2]
[373214011,1752907927994,460.0,0.00016438,2]
[373214012,1752907928506,460.0,0.00016438,2]
[373214013,1752907928931,460.0,0.00016438,2]
[373214014,1752907929003,460.0,0.00016438,2]
[373214015,1752907929036,462.26943869,0.00016438,2]
[373214016,1752907930117,461.19168358,0.00016438,2]
[373214017,1752907930765,460.0,0.00016438,2]
[373214018,1752907933198,460.0,0.00016438,2]
[373214019,1752907934730,462.52318657,0.00016438,2]
[373214020,1752907935403,460.0,0.00016438,2]
[373214021,1752907936713,460.0,0.00016438,2]
[373214022,1752907938809,460.0,0.00016438,2]
[373214023,1752907938843,460.0,0.00016438,2]
[373214024,1752907939060,460.0,0.00016438,2]
[373214025,1752907941512,460.0,0.00016438,2]
[373214026,1752907942483,460.0,0.00016438,2]
[373214027,1752907943053,326.42748335,0.00016438,2]
[373214028,1752907944819,272.40371555,0.00016438,2]
[373214029,1752907944845,187.59628445,0.00016438,2]
[373214030,1752907946356,460.0,0.00016438,2]
[373214031,1752907948728,460.0,0.00016438,2]
[373214032,1752907949461,18892.40371555,0.00016,2]
[373214033,1752907949488,20000.0,0.00016,2]
[373214034,1752907949514,20000.0,0.00016,2]
[373214035,1752907949539,9302.21919132,0.00016,2]
[373214036,1752907949579,460.0,0.00016438,2]
[373214037,1752907951721,460.0,0.00016438,2]
[373214038,1752907952975,460.0,0.00016438,2]
[373214039,1752907953184,460.0,0.00016438,2]
[373214040,1752907954261,460.0,0.00016438,2]
[373214041,1752907954374,460.0,0.00016438,2]
[373214042,1752907955990,460.0,0.00016438,2]
[373214043,1752907956198,460.0,0.00016438,2]
[373214044,1752907957449,460.0,0.00016438,2]
[373214045,1752907958245,505.17,0.00016438,2]
[373214046,1752907958880,460.0,0.00016438,2]
[373214047,1752907960509,460.0,0.00016438,2]
[373214048,1752907963387,460.0,0.00016438,2]
[373214049,1752907963982,460.0,0.00016438,2]
[373214050,1752907965816,460.0,0.00016438,2]
[373214051,1752907966397,460.0,0.00016438,2]
[373214052,1752907966556,460.0,0.00016438,2]
[373214053,1752907967171,460.0,0.00016438,2]
[373214054,1752907968107,460.0,0.00016438,2]
[373214055,1752907968261,460.0,0.00016438,2]
[373214056,1752907968883,460.0,0.00016438,2]
[373214057,1752907969187,460.0,0.00016438,2]
[373214058,1752907970851,460.0,0.00016438,2]
[373214059,1752907970916,72.61080868,0.00016438,2]
[373214060,1752907970942,387.38919132,0.00016438,2]
[373214061,1752907970989,5000.0,0.000165,2]
[373214062,1752907974473,460.0,0.00016438,2]
[373214063,1752907974757,460.0,0.00016438,2]
[373214064,1752907975006,460.0,0.00016438,2]
[373214065,1752907976895,460.0,0.00016438,2]
[373214066,1752907976960,460.0,0.00016438,2]
[373214067,1752907979062,460.0,0.00016438,2]
[373214068,1752907979205,460.0,0.00016438,2]
[373214069,1752907979356,460.0,0.00016438,2]
[373214070,1752907979762,460.0,0.00016438,2]
[373214071,1752907980523,460.0,0.00016438,2]
[373214072,1752907982752,460.0,0.00016438,2]
[373214073,1752907985777,460.0,0.00016438,2]
[373214074,1752907986245,516.40187786,0.00016438,2]
[373214075,1752907987003,5000.0,0.000165,2]
[373214076,1752907988053,460.0,0.00016438,2]
[373214077,1752907989088,460.0,0.00016438,2]
[373214078,1752907989758,460.0,0.00016438,2]
[373214079,1752907989908,460.0,0.00016438,2]
[373214080,1752907990791,460.0,0.00016438,2]
[373214081,1752907994878,905.69,0.00016438,2]
[373214082,1752907996050,370.51893082,0.00016438,2]
[373214083,1752907996075,89.48106918,0.00016438,2]
[373214084,1752907996115,460.0,0.00016438,2]
[373214085,1752907997543,1042.13,0.00016438,2]
[373214086,1752907998143,460.0,0.00016438,2]
[373214087,1752908000295,460.0,0.00016438,2]
[373214088,1752908001369,460.0,0.00016438,2]
[373214089,1752908002044,460.0,0.00016438,2]
[373214090,1752908002645,5000.0,0.000165,2]
[373214091,1752908004617,460.0,0.00016438,2]
[373214092,1752908005083,460.0,0.00016438,2]
[373214093,1752908008159,473.94,0.00016438,2]
[373214094,1752908010008,460.0,0.00016438,2]
[373214095,1752908010159,150.0,0.00014641,2]
[373214096,1752908010561,150.0,0.00015338,2]
[373214097,1752908010725,460.0,0.00016438,2]
[373214098,1752908010984,150.0,0.00016036,2]
[373214099,1752908012661,460.0,0.00016438,2]
[373214100,1752908012855,460.0,0.00016438,2]
[373214101,1752908015080,416.03089515,0.00016438,2]
[373214102,1752908015241,460.0,0.00016438,2]
[373214103,1752908015969,460.0,0.00016438,2]
[373214104,1752908016764,1156.44,0.00016438,2]
[373214105,1752908017604,184.594539,0.00016438,2]
[373214106,1752908018874,460.0,0.00016438,2]
[373214107,1752908019780,461.98427626,0.00016438,2]
[373214108,1752908020173,4285.39922041,0.000165,2]
[373214109,1752908020212,714.60077959,0.000165,2]
[373214110,1752908020329,460.0,0.00016438,2]
[373214111,1752908021441,460.0,0.00016438,2]
[373214112,1752908022042,460.0,0.00016438,2]
[373214113,1752908023690,500.0,0.00016438,2]
[373214114,1752908023967,502.40855876,0.00016438,2]
[373214115,1752908025341,460.0,0.00016438,2]
[373214116,1752908025432,460.0,0.00016438,2]
[373214117,1752908026968,460.0,0.00016438,2]
[373214118,1752908027909,460.0,0.00016438,2]
[373214119,1752908028506,460.9424693,0.00016438,2]
[373214120,1752908029595,460.0,0.00016438,2]
[373214121,1752908030575,460.0,0.00016438,2]
[373214122,1752908037040,5000.0,0.000165,2]
[373214123,1752908039459,460.0,0.00016438,2]
[373214124,1752908040421,460.0,0.00016438,2]
[373214125,1752908041882,460.0,0.00016438,2]
[373214126,1752908042050,433.52568215,0.00016438,2]
[373214127,1752908044814,460.0,0.00016438,2]
[373214128,1752908045828,460.0,0.00016438,2]
[373214129,1752908047010,460.0,0.00016438,2]
[373214130,1752908049940,460.0,0.00016438,2]
[373214131,1752908050059,460.0,0.00016438,2]
[373214132,1752908052078,4568.5225102,0.000165,2]
[373214133,1752908052103,431.4774898,0.000165,2]
[373214134,1752908052373,460.0,0.00016438,2]
[373214135,1752908052703,460.0,0.00016438,2]
[373214136,1752908053436,621.44,0.00016438,2]
[373214137,1752908053956,460.0,0.00016438,2]
[373214138,1752908056326,460.0,0.00016438,2]
[373214139,1752908059638,460.0,0.00016438,2]
[373214140,1752908059693,460.0,0.00016438,2]
[373214141,1752908062783,460.0,0.00016438,2]
[373214142,1752908063255,460.0,0.00016438,2]
[373214143,1752908063575,460.0,0.00016438,2]
[373214144,1752908063702,460.0,0.00016438,2]
[373214145,1752908064521,555.44428052,0.00016438,2]
[373214146,1752908068549,460.0,0.00016438,2]
[373214147,1752908069043,460.0,0.00016438,2]
[373214148,1752908069502,5000.0,0.000165,2]
[373214149,1752908070569,460.0,0.00016438,2]
[373214150,1752908073643,460.0,0.00016438,2]
[373214151,1752908074662,460.0,0.00016438,2]
[373214152,1752908076129,150.0,0.00014649,2]
[373214153,1752908076891,460.0,0.00016438,2]
[373214154,1752908077720,462.56205947,0.00016438,2]
[373214155,1752908077979,460.0,0.00016438,2]
[373214156,1752908080384,460.0,0.00016438,2]
[373214157,1752908086723,463.1022384,0.00016438,2]
[373214158,1752908087163,4035.97393181,0.000165,2]
[373214159,1752908087189,964.02606819,0.000165,2]
[373214160,1752908088050,460.77007548,0.00016438,2]
[373214161,1752908089864,461.37700377,0.00016438,2]
[373214162,1752908093684,460.0,0.00016438,2]
[373214163,1752908093967,460.0,0.00016438,2]
[373214164,1752908095112,460.0,0.00016438,2]
[373214165,1752908096486,460.0,0.00016438,2]
[373214166,1752908097333,460.0,0.00016438,2]
[373214167,1752908101311,-553.81878077,0.0001651,2]
[373214168,1752908101337,-6871.99151564,0.00016511,2]
[373214169,1752908101444,460.0,0.00016438,2]
[373214170,1752908102300,460.0,0.00016438,2]
[373214171,1752908103334,460.0,0.00016438,2]
[373214172,1752908105258,5000.0,0.0001652,2]
[373214173,1752908105347,460.0,0.00016438,2]
[373214174,1752908105718,460.0,0.00016438,2]
[373214175,1752908106119,460.0,0.00016438,2]
[373214176,1752908106706,460.0,0.00016438,2]
[373214177,1752908107401,467.63,0.00016438,2]
[373214178,1752908107769,460.61746917,0.00016438,2]
[373214179,1752908108690,460.0,0.00016438,2]
[373214180,1752908109299,460.0,0.00016438,2]
[373214181,1752908111366,460.0,0.00016438,2]
[373214182,1752908113617,488.06616328,0.00016438,2]
[373214183,1752908114737,460.0,0.00016438,2]
[373214184,1752908114916,460.0,0.00016438,2]
[373214185,1752908117696,460.0,0.00016438,2]
[373214186,1752908120848,460.0,0.00016438,2]
[373214187,1752908121033,5000.0,0.0001652,2]
[373214188,1752908127883,460.0,0.00016438,2]
[373214189,1752908135385,460.0,0.00016438,2]
[373214190,1752908135423,460.0,0.00016438,2]
[373214191,1752908136523,460.0,0.00016438,2]
[373214192,1752908136827,5000.0,0.0001652,2]
[373214193,1752908140289,150.0,0.00014649,2]
[373214194,1752908141303,460.98580716,0.00016438,2]
[373214195,1752908143614,460.0,0.00016438,2]
[373214196,1752908145638,460.0,0.00016438,2]
[373214197,1752908147020,460.0,0.00016438,2]
[373214198,1752908148793,460.0,0.00016438,2]
[373214199,1752908150513,1454.87,0.00016438,2]
[373214200,1752908152045,5000.0,0.0001652,2]
[373214201,1752908153983,460.0,0.00016438,2]
[373214202,1752908155345,460.0,0.00016438,2]
[373214203,1752908156975,460.0,0.00016438,2]
[373214204,1752908157215,460.0,0.00016438,2]
[373214205,1752908157648,460.0,0.00016438,2]
[373214206,1752908159232,461.41147094,0.00016438,2]
[373214207,1752908162226,460.96777566,0.00016438,2]
[373214208,1752908163682,525.0,0.00016438,2]
[373214209,1752908164360,460.0,0.00016438,2]
[373214210,1752908164579,460.0,0.00016438,2]
[373214211,1752908164887,460.0,0.00016438,2]
[373214212,1752908167077,462.76317008,0.00016438,2]
[373214213,1752908167601,5000.0,0.0001652,2]
[373214214,1752908169226,460.0,0.00016438,2]
[373214215,1752908169261,155.0,0.0001652,2]
[373214216,1752908169840,460.0,0.00016438,2]
[373214217,1752908178976,460.0,0.00016438,2]
[373214218,1752908181856,460.0,0.00016438,2]
[373214219,1752908183189,460.0,0.00016438,2]
[373214220,1752908184383,460.0,0.00016438,2]
[373214221,1752908184983,4060.67891554,0.0001652,2]
[373214222,1752908189228,460.0,0.00016438,2]
[373214223,1752908190847,460.0,0.00016438,2]
[373214225,1752908196522,462.31027568,0.00016438,2]
[373214226,1752908196557,460.0,0.00016438,2]
[373214227,1752908197262,460.0,0.00016438,2]
[373214228,1752908201089,455.953732,0.00013699,2]
[373214229,1752908202178,460.0,0.00016438,2]
[373214230,1752908203642,460.0,0.00016438,2]
[373214231,1752908205485,323.6693216,0.00016438,2]
[373214232,1752908208380,762.59,0.00016438,2]
[373214233,1752908212440,460.0,0.00016438,2]
[373214234,1752908217890,460.0,0.00016438,2]
[373214235,1752908218952,460.0,0.00016438,2]
[373214236,1752908226963,460.0,0.00016438,2]
[373214237,1752908228576,479.37845129,0.00016438,2]
[373214238,1752908229284,460.0,0.00016438,2]
[373214239,1752908229996,460.0,0.00016438,2]
[373214240,1752908233526,460.0,0.00016438,2]
[373214241,1752908235742,460.0,0.00016438,2]
[373214242,1752908238400,460.0,0.00016438,2]
[373214243,1752908238567,460.0,0.00016438,2]
[373214244,1752908239012,24900.0,0.00015635,2]
[373214245,1752908239556,460.0,0.00016438,2]
[373214246,1752908242260,460.67570846,0.00016438,2]
[373214247,1752908243906,460.0,0.00016438,2]
[373214248,1752908244083,460.0,0.00016438,2]
[373214249,1752908250854,1969.9113218,0.00015635,2]
[373214250,1752908253239,460.0,0.00016438,2]
[373214251,1752908253272,460.0,0.00016438,2]
[373214252,1752908256583,460.55253347,0.00016438,2]
[373214253,1752908257046,460.0,0.00016438,2]
[373214254,1752908257348,460.0,0.00016438,2]